[Event "ESCC-65 2022"]
[Site "Lublin"]
[Date "2022.07.05"]
[Round "1.14"]
[White "Sokolowski, Ryszard"]
[Black "Plesiuk, Jan"]
[Result "1-0"]
[ECO "E00"]
[WhiteElo "2050"]
[BlackElo "1573"]
[Annotator "TA"]
[PlyCount "99"]
[EventDate "2022.07.05"]
[EventType "swiss"]
[EventCountry "POL"]
[SourceTitle "playchess.com"]
[Source "ChessBase"]
[SourceQuality "1"]
[TimeControl "40/5400+30:1800+30"]

{[%evp 9,99,68,80,66,58,39,76,68,86,95,110,110,142,89,177,124,145,104,231,112,191,171,205,188,307,278,281,25,98,-65,259,186,218,186,720,697,697,652,2997,-54,-59,-71,-64,-70,864,843,860,818,762,641,1111,1082,29996,631,610,410,389,370,280,76,141,0,34,3,10,0,20,17,17,16,12,0,8,8,30,24,24,16,53,30,69,15,14,0,0,0,18,28,554,548,5716,5716]} 1. d4 {[%emt 0:00:30][%cal Bd2d4,Bd4d5][%mdl 32]} Nf6 {[%emt 0:00:30]} 2. c4 {[%emt 0:00:30]} e6 {[%emt 0:00:30]} 3. Nc3 {[%emt 0:00:30]} c5 {[%emt 0:00:00]} 4. d5 {[%emt 0:00:00]} d6 {[%emt 0:00:09]} 5. e4 {[%emt 0:00:00]} Be7 {[%emt 0:00:19]} 6. f4 {[%emt 0:02:45] A60: Modern Benoni: Early Divergences.} O-O {[%emt 0:01:13]} 7. Nf3 {[%emt 0:01:26]} a6 {[%emt 0:00:13]} 8. a4 {[%emt 0:01:24] [#] White is better.} Re8 $146 {[%emt 0:02:15]} ({Predecessor:} 8... exd5 9. Nxd5 Bg4 10. Be2 Nbd7 11. h3 Bxf3 12. Bxf3 Ne8 13. O-O f5 14. exf5 Rxf5 15. Bg4 Rf8 16. Be6+ Kh8 17. Be3 Nc7 18. Qd3 Rb8 19. Rae1 b5 20. axb5 axb5 {0-1 (20) Mas Recorda,P (2032)-Bigas Hospital,J (1843) Girona 2013}) 9. Bd3 {[%emt 0:03:00]} Nbd7 {[%emt 0:00:25]} 10. O-O {[%emt 0:01:24]} Nf8 {[%emt 0:00:41]} 11. Kh1 {[%emt 0:04:35]} ({White should play} 11. e5) 11... Qc7 {[%emt 0:03:23]} (11... exd5 $16 12. exd5 (12. Nxd5 Nxd5 13. cxd5 Bf6 $14) 12... Ng6) 12. b3 {[%emt 0:15:36]} (12. e5 $18) 12... exd5 {[%emt 0:00:56]} 13. cxd5 {[%emt 0:01:04]} (13. Nxd5 $6 Nxd5 14. exd5 Bf6 $14) 13... h6 {[%emt 0:01:22]} (13... N6d7 $16 {was worth a try.}) 14. h3 {[%emt 0:03:15]} (14. e5 $18) 14... Bd7 {[%emt 0:03:50]} (14... N6d7 $16) 15. Re1 {[%emt 0:06:54]} Ng6 {[%emt 0:02:25]} 16. e5 $1 {[%emt 0:09:02]} Nh7 {[%emt 0:04:10]} (16... Nh5 {was necessary.}) 17. Qc2 {[%emt 0:08:15]} Nhf8 {[%emt 0:00:59]} 18. g4 $2 {[%emt 0:03:14]} (18. e6 $18) 18... Nh4 {[%emt 0:01:55]} (18... dxe5 $1 $11 19. fxe5 Nh4) 19. Ng1 $2 {[%emt 0:02:40] White is more active.} (19. exd6 $16 Qxd6 20. Ne5) 19... g5 $2 {[%emt 0:10:14][%mdl 8192]} (19... dxe5 $1 $15 20. f5 (20. Rxe5 Bf6 $17) 20... Qd6) 20. Ne4 {[%emt 0:04:57]} dxe5 {[%emt 0:16:25]} 21. fxe5 {[%emt 0:07:04]} (21. fxg5 $6 hxg5 22. Bxg5 Bxg5 $16) 21... Qxe5 {[%emt 0:16:52]} (21... Nfg6) 22. Bb2 $18 {[%emt 0:00:04]} Qxd5 {[%emt 0:00:04]} 23. Bc4 {[%emt 0:00:34]} ({Weaker is} 23. Qc3 Qd4 24. Qc2 (24. Qxd4 $2 cxd4 25. Ne2 Ne6 $19) 24... Qb4 $17) 23... Qc6 {[%emt 0:00:04] Strongly threatening ...Nh7.} 24. Rad1 $2 {[%emt 0:00:46]} (24. Qc3 $18 {[%csl Gb2][%cal Rc3h8]} Bf6 25. Qxf6 Qxf6 26. Nxf6+ Kg7 27. Nxe8+ Kg6 28. Bd3+ Nf5 29. Nf3 $1) 24... Be6 $1 $15 {[%emt 0:00:24] And now ...Rad8 would win.} 25. Qc3 {[%emt 0:15:37][%csl Gb2][%cal Rc3h8]} f6 $1 {[%emt 0:00:27] Hoping for ...Rad8.} 26. Nf3 {[%emt 0:00:51]} Nh7 $2 {[%emt 0:15:15][%mdl 8192]} (26... Nxf3 $15 27. Qxf3 Rad8 28. Rxd8 (28. Bxf6 Rxd1 29. Rxd1 Bxc4 $17) 28... Bxd8) 27. Bxe6+ $18 {[%emt 0:02:25]} Qxe6 {[%emt 0:00:17] [#]} 28. Nexg5 $1 {[%emt 0:00:12][%mdl 512]} Qc6 {[%emt 0:01:03]} 29. Re6 {[%emt 0:00:07]} Qc8 {[%emt 0:02:45] [#]} 30. Qc4 $1 {[%emt 0:00:02] White wants to mate with Rxe7+.} Kg7 {[%emt 0:00:16] [#]} (30... b5 31. Qd5) 31. Nxh4 {[%emt 0:00:23]} (31. Rxf6 $142 $3 {[%mdl 512]} Qe6 (31... Nxg5 32. Rf7+) 32. Qxe6 Nxf6 33. Qf7+ Kh8 34. Qh7#) 31... Nxg5 {[%emt 0:00:58]} 32. Re3 {[%emt 0:00:35]} Qc6+ {[%emt 0:01:00]} 33. Kg1 {[%emt 0:00:04]} Bf8 {[%emt 0:05:56] [#]} 34. Qd3 {[%emt 0:01:07] Dancing on a razor blade.} (34. Qc2 $1 $18 {[%cal Rc2g6] and the rest is easy. Black must now prevent Qg6+.} Rxe3 (34... Kh8 35. Qg6) 35. Qg6+ Kh8 36. Bxf6+ Qxf6 37. Qxf6+ Kg8 38. Qg6+ Kh8 39. Qf5) 34... Re4 {[%emt 0:01:41]} (34... Ne4 $142) 35. Nf5+ {[%emt 0:00:45]} ({Only move:} 35. Rf1 $16 c4 36. bxc4) 35... Kg8 {[%emt 0:00:36]} 36. Rxe4 {[%emt 0:00:29]} (36. Bxf6 $5 Qxf6 37. Rxe4 Nxe4 38. Qxe4 $14) 36... Qxe4 {[%emt 0:01:38]} 37. Bxf6 {[%emt 0:00:19]} (37. a5 {is more complex.} Qe6 38. Qc4 Qxc4 39. bxc4 Nxh3+ 40. Kg2) 37... Qxd3 {[%emt 0:01:17]} 38. Rxd3 {[%emt 0:00:01]} b5 {[%emt 0:00:55]} 39. h4 {[%emt 0:00:54]} Ne4 {[%emt 0:00:55]} 40. Be5 {[%emt 0:00:00]} bxa4 {[%emt 0:00:00]} 41. bxa4 {[%emt 0:00:04]} Rc8 {[%emt 0:01:23]} 42. Kf1 {[%emt 0:15:47]} Kf7 {[%emt 0:02:21][%cal Oh6h5]} 43. Bf4 {[%emt 0:01:09]} Rc6 {[%emt 0:00:46]} 44. Ke2 {[%emt 0:02:03]} c4 {[%emt 0:01:14]} 45. Re3 {[%emt 0:03:05]} (45. Rf3 $1 $14) 45... Nf6 $11 {[%emt 0:00:56]} 46. Nd4 {[%emt 0:03:52]} Rb6 {[%emt 0:00:39]} 47. Rf3 {[%emt 0:00:26] aiming for g5.} Rb2+ {[%emt 0:03:19]} 48. Kd1 {[%emt 0:00:05] Threatens to win with Be5.} Kg7 $2 {[%emt 0:01:59][%mdl 8192]} (48... Kg8 $11 {and Black stays safe.}) 49. Be5 $18 {[%emt 0:00:23] Ne6+ is the strong threat.} Rb4 {[%emt 0:04:08]} 50. Rxf6 {[%emt 0:00:20] Weighted Error Value: White=0.77/Black=0.73} 1-0

[Event "ESCC-65 2022"]
[Site "Lublin"]
[Date "2022.07.05"]
[Round "1.15"]
[White "Berkley, Stephen W"]
[Black "Hewson, Brian W R"]
[Result "1/2-1/2"]
[ECO "D45"]
[WhiteElo "1525"]
[BlackElo "2049"]
[Annotator "TA"]
[PlyCount "47"]
[EventDate "2022.07.05"]
[EventType "swiss"]
[EventCountry "POL"]
[SourceTitle "playchess.com"]
[Source "ChessBase"]
[SourceQuality "1"]
[TimeControl "40/5400+30:1800+30"]

{[%evp 12,47,31,33,37,29,29,31,40,24,22,11,23,20,40,22,49,46,51,53,50,66,115,114,173,89,117,112,91,85,91,90,61,39,90,97,82,94]} 1. d4 {[%emt 0:00:05]} Nf6 {[%emt 0:00:24]} 2. c4 {[%emt 0:00:05]} e6 {[%emt 0:00:07]} 3. Nc3 {[%emt 0:00:08]} d5 {[%emt 0:00:19]} 4. Nf3 {[%emt 0:00:27]} c6 {[%emt 0:00:58]} 5. e3 {[%emt 0:01:05]} Nbd7 {[%emt 0:02:41]} 6. Qc2 {[%emt 0:01:56]} a6 {[%emt 0:14:02]} 7. b3 {[%emt 0:13:54]} h6 {[%emt 0:13:10] [#] D45: Semi-Slav: 5 e3.} 8. h3 $146 {[%emt 0:07:12]} ({Predecessor:} 8. Bd3 Bd6 9. O-O O-O 10. e4 e5 11. cxd5 cxd5 12. Nxd5 Nxd5 13. exd5 exd4 14. h3 {1-0 (70) Berube,A (2152)-Leveille,F (2301) Montreal 2012}) 8... Bd6 {[%emt 0:02:55]} 9. Bd3 {[%emt 0:09:20]} O-O {[%emt 0:06:16] White is slightly better.} 10. O-O {[%emt 0:01:24]} Re8 {[%emt 0:10:06]} 11. e4 {[%emt 0:15:20] [#] And now e5 would win.} dxe4 {[%emt 0:02:38]} 12. Nxe4 {[%emt 0:00:10]} Nxe4 {[%emt 0:01:15]} 13. Bxe4 {[%emt 0:00:28]} f5 {[%emt 0:13:40]} 14. Bd3 {[%emt 0:00:13]} c5 {[%emt 0:00:30]} 15. Bb2 {[%emt 0:10:15]} cxd4 {[%emt 0:01:17]} 16. Nxd4 {[%emt 0:00:34]} Be5 {[%emt 0:08:31]} (16... Nc5 $14) 17. Rad1 $16 {[%emt 0:04:37]} Qc7 {[%emt 0:02:47]} (17... Bxd4 $16 {was necessary.} 18. Bxd4 b6) 18. Be2 {[%emt 0:02:56]} (18. Rfe1 $18) 18... Bf6 {[%emt 0:01:41]} 19. Bh5 {[%emt 0:08:27]} Re7 {[%emt 0:02:38]} 20. Rfe1 {[%emt 0:03:48] White is more active.} Nc5 {[%emt 0:08:16]} 21. b4 {[%emt 0:00:55]} Ne4 {[%emt 0:00:23]} 22. Nf3 {[%emt 0:00:58]} Bxb2 {[%emt 0:02:08]} (22... Rd7 $14) 23. Qxb2 {[%emt 0:00:08]} Bd7 {[%emt 0:00:54]} 24. Ne5 {[%emt 0:00:54] Weighted Error Value: White=0.09 (flawless) /Black=0.15 (very precise)} 1/2-1/2

[Event "ESCC-65 2022"]
[Site "Lublin"]
[Date "2022.07.06"]
[Round "2.1"]
[White "Dobosz, Henryk"]
[Black "Lederman, Leon"]
[Result "1/2-1/2"]
[ECO "A11"]
[WhiteElo "2354"]
[BlackElo "2213"]
[Annotator "TA"]
[PlyCount "65"]
[EventDate "2022.07.05"]
[EventType "swiss"]
[EventCountry "POL"]
[SourceTitle "playchess.com"]
[Source "ChessBase"]
[SourceQuality "1"]
[TimeControl "40/5400+30:1800+30"]

{[%evp 16,65,8,7,16,2,30,19,25,-21,-10,-20,-32,-32,-31,-60,-60,-52,-6,-38,77,77,120,120,163,169,157,162,168,160,424,274,291,267,270,277,283,259,567,568,528,175,187,178,163,152,173,11,89,95,91,75]} 1. c4 {[%emt 0:00:11]} c6 {[%emt 0:00:08]} 2. d4 {[%emt 0:02:21]} d5 {[%emt 0:00:06]} 3. Nc3 {[%emt 0:00:40]} Nf6 {[%emt 0:00:07]} 4. cxd5 {[%emt 0:00:37]} cxd5 {[%emt 0:00:04]} 5. Bf4 {[%emt 0:00:26]} Nc6 {[%emt 0:00:13]} 6. e3 {[%emt 0:00:40]} a6 {[%emt 0:04:28]} 7. Bd3 {[%emt 0:06:12]} Bg4 {[%emt 0:01:07]} 8. f3 {[%emt 0:00:30]} Bh5 {[%emt 0:00:05]} 9. Nge2 {[%emt 0:08:06]} e6 {[%emt 0:00:31] D10: Slav Defence: 3 cxd5 (without early Nf3) and 3 Nc3.} 10. Rc1 {[%emt 0:07:57]} Bd6 {[%emt 0:01:39]} 11. Bxd6 {[%emt 0:06:49]} Qxd6 {[%emt 0:00:15] [#] The position is equal.} 12. f4 $146 {[%emt 0:00:03]} (12. Na4 $142) ({Predecessor:} 12. Nf4 Bg6 13. O-O Ke7 14. Qd2 Rac8 15. Na4 Qb4 16. Nc3 Qd6 17. Na4 Qb4 18. Nc3 Qd6 19. Na4 Qb4 {½-½ (19) Ni,H (2629)-Harikrishna,P (2645) Tiayuan 2005}) 12... O-O $11 {[%emt 0:02:26]} 13. O-O {[%emt 0:03:22]} Rfc8 {[%emt 0:00:45]} 14. Qd2 {[%emt 0:01:06]} Bg6 {[%emt 0:00:39]} 15. Ng3 {[%emt 0:03:48]} Bxd3 {[%emt 0:01:45]} 16. Qxd3 {[%emt 0:00:11]} Nb4 {[%emt 0:04:56]} (16... Rc7 $15) 17. Qd2 {[%emt 0:02:09]} Rc7 {[%emt 0:00:40] [#]} (17... g6 $15) 18. e4 $1 $16 {[%emt 0:10:01][%cal Be3e4,Be4e5][%mdl 32] And now e5 would win.} Qf8 {[%emt 0:04:54]} 19. e5 {[%emt 0:01:02]} Nd7 {[%emt 0:04:20]} 20. f5 {[%emt 0:00:15] Hoping for fxe6.} Qd8 {[%emt 0:01:38]} 21. Rf4 {[%emt 0:11:09] Inhibits Qh4.} Rac8 {[%emt 0:09:18]} 22. Rcf1 {[%emt 0:04:29]} Rc4 $2 {[%emt 0:10:25]} (22... Kh8 $16 23. Nb5 axb5) 23. fxe6 {[%emt 0:06:03]} fxe6 {[%emt 0:00:17]} 24. a3 {[%emt 0:07:25]} Nc6 {[%emt 0:01:59]} 25. b3 {[%emt 0:00:15]} Rxc3 {[%emt 0:00:27]} 26. Qxc3 {[%emt 0:00:07]} Ncxe5 $2 {[%emt 0:00:12]} (26... Qe7 {is a better chance.} 27. Ne2 Rf8) 27. Qe3 $18 {[%emt 0:03:14]} Qb6 {[%emt 0:00:09]} 28. Re1 $2 {[%emt 0:02:42]} (28. Nh5) 28... Ng6 {[%emt 0:00:48]} 29. Rf2 {[%emt 0:00:39]} Re8 {[%emt 0:00:31]} 30. Nh5 {[%emt 0:01:04] Inhibits Nf6.} e5 {[%emt 0:02:55]} 31. Nf4 $2 {[%emt 0:03:17]} Nxf4 {[%emt 0:06:13]} (31... Nf6 $1 $11 32. Nxg6 (32. dxe5 Qxe3 33. Rxe3 Ng4 $11) 32... hxg6) 32. Rxf4 $16 {[%emt 0:00:05][%cal Rd4e5][%mdl 64] [#] Pin} e4 {[%emt 0:00:14]} 33. h3 {[%emt 0:00:21] Weighted Error Value: White=0.44/Black=0.48} 1/2-1/2

[Event "ESCC-65 2022"]
[Site "Lublin"]
[Date "2022.07.06"]
[Round "2.2"]
[White "Biro, Sandor"]
[Black "Bogdanov, Valentin"]
[Result "1-0"]
[ECO "C55"]
[WhiteElo "2116"]
[BlackElo "2333"]
[Annotator "TA"]
[PlyCount "31"]
[EventDate "2022.07.05"]
[EventType "swiss"]
[EventCountry "POL"]
[SourceTitle "playchess.com"]
[Source "ChessBase"]
[SourceQuality "1"]
[TimeControl "40/5400+30:1800+30"]

{[%evp 13,31,34,32,16,30,27,250,207,221,189,193,239,241,213,391,393,385,377,338,360]} 1. e4 {[%emt 0:00:04][%cal Be2e4,Be4e5,Be5f6,Bf6g7][%mdl 32]} e5 {[%emt 0:00:06]} 2. Nf3 {[%emt 0:01:00]} Nc6 {[%emt 0:00:08]} 3. Bc4 {[%emt 0:02:27]} Bc5 {[%emt 0:01:40]} 4. O-O {[%emt 0:00:17]} Nf6 {[%emt 0:01:00]} 5. d4 {[%emt 0:00:15]} exd4 {[%emt 0:01:47]} 6. e5 {[%emt 0:00:09]} d5 {[%emt 0:02:12]} 7. exf6 {[%emt 0:00:35]} dxc4 {[%emt 0:00:07]} 8. fxg7 {[%emt 0:00:07] C56: Two Knights: 4 d4 exd4 5 0-0 Nxe4.} Rg8 {[%emt 0:00:32]} 9. Bg5 {[%emt 0:00:08] Prevents Qf6.} Qd6 {[%emt 0:02:12] 9...Qd5 is the modern continuation.} (9... Be7 $11 {and Black has nothing to worry.} 10. Bxe7 Kxe7) 10. Nbd2 {[%emt 0:01:11] White is clearly better.} Qg6 {[%emt 0:19:04] [#]} 11. Ne4 $1 {[%emt 0:04:22][%mdl 512]} Be7 {[%emt 0:07:02] Prevents Nf6+.} (11... Qxe4 $2 12. Re1 Qe6 13. Bf6 $18) 12. Re1 {[%emt 0:43:08] Nf6+ is the strong threat.} (12. Bxe7 Kxe7 13. Nxd4 Rxg7) 12... Be6 {[%emt 0:03:50]} 13. Bxe7 {[%emt 0:01:44]} ({Worse is} 13. Nxd4 O-O-O 14. Nxc6 bxc6 $17) 13... Nxe7 {[%emt 0:04:41]} (13... Kxe7 14. Nxd4 (14. Ng3 Rad8 $16) 14... Nxd4 15. Qxd4 Qxg7 16. Qc5+ Kd7 17. Rad1+ Kc8) 14. Qxd4 $18 {[%emt 0:00:43] Hoping for Nf6+.} Rxg7 {[%emt 0:00:48][%csl Gg7][%cal Rg6g2] [#]} 15. Nh4 $146 {[%emt 0:09:12] Pair of Knights!} ({Predecessor:} 15. g3 Nc6 16. Nf6+ Kf8 17. Qc5+ Ne7 18. Nd5 Re8 19. Nxe7 Rxe7 20. Rad1 Ke8 21. Qd4 {1-0 (44) Tober,G (2296)-Frank,D (2144) Austria 2010}) 15... Qh6 {[%emt 0:01:35] [#]} 16. Rad1 $1 {[%emt 0:05:44] Black did not feel at home in the position after the opening.  Weighted Error Value: White=0.04 (flawless) /Black=0.75} 1-0

[Event "ESCC-65 2022"]
[Site "Lublin"]
[Date "2022.07.06"]
[Round "2.3"]
[White "Renman, Nils-Gustaf"]
[Black "Chapman, Terry P D"]
[Result "1-0"]
[ECO "E11"]
[WhiteElo "2311"]
[BlackElo "2207"]
[Annotator "TA"]
[PlyCount "91"]
[EventDate "2022.07.05"]
[EventType "swiss"]
[EventCountry "POL"]
[SourceTitle "playchess.com"]
[Source "ChessBase"]
[SourceQuality "1"]
[TimeControl "40/5400+30:1800+30"]

{[%evp 10,91,23,20,26,27,30,19,42,41,39,23,52,23,52,56,68,46,69,90,85,48,54,39,47,21,35,37,102,111,329,105,93,94,96,83,89,66,37,34,25,39,42,36,75,88,260,271,268,282,287,275,246,227,316,306,324,317,315,290,440,426,383,311,358,345,739,662,1697,1527,5545,3422,29973,29974,29972,29975,29974,29975,29978,29977,29978,29978,11278,5122]} 1. d4 {[%emt 0:00:03]} Nf6 {[%emt 0:00:03]} 2. c4 {[%emt 0:00:10]} e6 {[%emt 0:00:02]} 3. Nf3 {[%emt 0:00:17]} Bb4+ {[%emt 0:00:04]} 4. Nbd2 {[%emt 0:01:10]} O-O {[%emt 0:05:08]} 5. a3 {[%emt 0:00:25]} Be7 {[%emt 0:00:07]} 6. e4 {[%emt 0:01:48]} d6 {[%emt 0:00:37] E11: Bogo-Indian.} 7. Be2 $1 {[%emt 0:03:02] 7.Be2 scores better than 7.Bd3.} Nfd7 {[%emt 0:04:07]} 8. b4 {[%emt 0:03:01]} e5 {[%emt 0:03:59] The position is equal.} 9. d5 {[%emt 0:03:30]} a5 {[%emt 0:03:25]} 10. Bb2 {[%emt 0:01:19]} c5 {[%emt 0:13:44]} 11. bxa5 {[%emt 0:00:27]} Rxa5 {[%emt 0:01:55]} 12. O-O {[%emt 0:01:01] [#]} g6 $146 {[%emt 0:00:19]} ({Predecessor:} 12... Ra6 13. Ne1 Nf6 14. g3 Bh3 15. Ng2 Nbd7 16. f4 g6 17. Rf2 h5 18. Ne3 Re8 {½-½ (46) Gajewski,G (2596)-Tratar,M (2419) Tornelo INT 2021}) 13. Ne1 {[%emt 0:00:52]} f5 {[%emt 0:05:30]} 14. exf5 {[%emt 0:02:44]} gxf5 {[%emt 0:00:10]} 15. f4 {[%emt 0:00:41]} Bf6 {[%emt 0:05:01]} 16. fxe5 {[%emt 0:07:41]} (16. Qb1 $5 {[%cal Rb1f5]}) 16... Nxe5 {[%emt 0:00:58]} 17. Qc2 {[%emt 0:01:26]} Qe7 {[%emt 0:07:01]} 18. Kh1 {[%emt 0:10:44]} Ng4 {[%emt 0:17:58]} (18... Nbd7 $14) 19. Bxg4 $16 {[%emt 0:00:21]} fxg4 {[%emt 0:01:58] [#]} (19... Bxb2 $16 20. Qxb2 fxg4) 20. Nd3 $2 {[%emt 0:01:29]} (20. Rxf6 $1 $18 {is the precise move to win.} Rxf6 21. Qc3) 20... Bxb2 {[%emt 0:00:58]} 21. Qxb2 {[%emt 0:01:42]} Nd7 {[%emt 0:04:28]} 22. Rxf8+ {[%emt 0:05:52]} Nxf8 {[%emt 0:05:31]} 23. Re1 {[%emt 0:03:18] White is more active.} (23. Rf1 {feels hotter.} Ra8 24. Nf4 Bf5 25. Nh5) 23... Qg7 {[%emt 0:02:11]} 24. Qb3 {[%emt 0:04:27] Ne4 is the strong threat.} Bf5 {[%emt 0:02:44]} 25. Nf2 {aiming for Nde4.} Ra8 {[%emt 0:04:37]} 26. Qg3 $36 {[%emt 0:07:57][%mdl 2048] White has the initiative.} Qd4 {[%emt 0:05:23]} 27. Nfe4 {[%emt 0:04:03] White stays focused until the end.} Bg6 $2 {[%emt 0:01:46]} (27... Bxe4 $16 28. Nxe4 Re8 29. Nxd6 Rxe1+ 30. Qxe1 Qf4) 28. Qxg4 $18 {[%emt 0:11:34]} ({Worse is} 28. Qxd6 Re8 29. Qf4 (29. Nf6+ Qxf6 30. Qxf6 Rxe1+ 31. Nf1 Bd3 $11) 29... Nd7 $11) 28... Rxa3 {[%emt 0:00:30][%cal Ob7b5] [#]} 29. h4 $1 {[%emt 0:03:09] And now h5 would win.} Ra1 {[%emt 0:00:18]} 30. Rxa1 {[%emt 0:00:12]} Qxa1+ {[%emt 0:00:00]} 31. Kh2 {[%emt 0:00:12] Strongly threatening h5.} Qe5+ {[%emt 0:01:21]} 32. Qg3 {[%emt 0:00:57]} Nd7 {[%emt 0:03:00]} 33. Nxd6 {[%emt 0:01:35]} b6 {[%emt 0:01:23]} 34. Nf3 {[%emt 0:04:24] Pair of Knights!} Qxg3+ {[%emt 0:00:07]} (34... Qg7 $142 35. Nc8 Bh5) 35. Kxg3 {[%emt 0:00:09][%mdl 4096] Endgame KBN-KNN} Kf8 {[%emt 0:00:46]} 36. Kf4 {[%emt 0:00:28]} Ke7 37. Nf5+ {[%emt 0:04:56]} Kf6 $2 {[%emt 0:01:10]} (37... Bxf5 38. Kxf5 b5) 38. g4 {[%emt 0:03:58][%cal Bg2g4,Bg4g5][%mdl 32] Hoping for h5.} Bxf5 {[%emt 0:00:36]} 39. g5+ {[%emt 0:02:02]} Kg6 {[%emt 0:00:07]} 40. h5+ $1 {[%emt 0:00:00][%mdl 64] Deflection} Kxh5 {[%emt 0:00:00]} 41. Kxf5 {[%emt 0:00:11] KN-KN} b5 {[%emt 0:01:39]} 42. cxb5 c4 {[%emt 0:03:46]} 43. d6 {[%emt 0:03:17]} c3 {[%emt 0:05:56]} 44. Ne1 {[%emt 0:01:14]} Nc5 {[%emt 0:04:26]} 45. Kf6 {[%emt 0:12:48]} Kg4 {[%emt 0:03:12]} 46. Ke7 {[%emt 0:00:20] Weighted Error Value: White=0.09 (flawless) /Black=0.47} 1-0

[Event "ESCC-65 2022"]
[Site "Lublin"]
[Date "2022.07.06"]
[Round "2.4"]
[White "Syre, Christian"]
[Black "Sokolowski, Ryszard"]
[Result "1/2-1/2"]
[ECO "A45"]
[WhiteElo "2243"]
[BlackElo "2050"]
[Annotator "TA"]
[PlyCount "92"]
[EventDate "2022.07.05"]
[EventType "swiss"]
[EventCountry "POL"]
[SourceTitle "playchess.com"]
[Source "ChessBase"]
[SourceQuality "1"]
[TimeControl "40/5400+30:1800+30"]

{[%evp 14,92,18,11,48,49,37,26,31,26,36,30,45,21,45,20,26,0,0,-5,0,0,18,16,44,0,-2,0,0,0,0,-11,0,0,0,0,0,0,0,-29,-25,-25,-4,-14,0,0,0,-15,-22,-15,-18,-17,-12,-47,-45,-43,-28,-61,-44,-58,-63,-66,-58,-64,-44,-48,-41,-45,-42,-48,-18,-46,-47,-52,-47,-52,-54,-55,-45,-62,-18]} 1. d4 {[%emt 0:02:10]} Nf6 {[%emt 0:00:50]} 2. Bf4 {[%emt 0:00:22]} e6 {[%emt 0:00:49]} 3. e3 {[%emt 0:00:17]} b6 {[%emt 0:00:32]} 4. Nf3 {[%emt 0:00:17]} Bb7 {[%emt 0:00:21]} 5. Bd3 {[%emt 0:00:18]} Be7 {[%emt 0:01:24]} 6. h3 {[%emt 0:00:14]} c5 $1 {[%emt 0:01:16][%mdl 4] is currently scoring better than 6...0-0.} 7. c3 {[%emt 0:03:31]} Nc6 {[%emt 0:02:58]} 8. Nbd2 {[%emt 0:00:07]} cxd4 {[%emt 0:06:08] A47: 1 d4 Nf6 2 Nf3 b6: Torre, London and Colle Systems.} 9. exd4 {[%emt 0:00:05]} d6 {[%emt 0:01:00]} 10. Bh2 {[%emt 0:00:48]} O-O {[%emt 0:04:01] White has an edge.} 11. O-O {[%emt 0:00:47]} Re8 {[%emt 0:02:15]} 12. Re1 {[%emt 0:00:29]} Bf8 {[%emt 0:01:44] [#]} 13. a3 $146 {[%emt 0:07:06]} ({Predecessor:} 13. Ne4 Na5 14. Qc2 Nxe4 15. Bxe4 Bxe4 16. Rxe4 d5 17. Re2 Rc8 18. Qd3 Nc4 19. Ne5 {1-0 (32) Bindrich,F (2594)-Zhang,Z (2619) Berlin 2015}) 13... Qd7 {[%emt 0:17:07]} 14. Rc1 {[%emt 0:03:08]} g6 {[%emt 0:06:55]} 15. c4 {[%emt 0:02:39]} Bh6 {[%emt 0:06:53]} 16. Rc2 {[%emt 0:06:21]} Rad8 {[%emt 0:03:41]} 17. Bf1 {[%emt 0:07:36]} e5 {[%emt 0:12:18] Hoping for ...e4.} 18. d5 {[%emt 0:01:20]} Nb8 {[%emt 0:01:11]} 19. Rc3 {[%emt 0:03:13]} Na6 {[%emt 0:02:41][%cal Ob6b5]} 20. Bg3 {[%emt 0:04:25]} Rc8 {[%emt 0:02:40]} 21. Bh4 {[%emt 0:00:07]} Bg7 {[%emt 0:00:39]} 22. Nb1 {[%emt 0:08:33]} h6 {[%emt 0:01:39]} 23. Bxf6 {[%emt 0:07:51]} Bxf6 {[%emt 0:00:04]} 24. Rce3 {[%emt 0:00:03]} Bg7 {[%emt 0:06:42]} 25. Nc3 {[%emt 0:00:06]} Nc7 {[%emt 0:00:46][%cal Ba6c7,Bc7e8,Be8f6][%mdl 32]} 26. Bd3 {[%emt 0:03:04]} Rf8 {[%emt 0:02:12]} 27. Bc2 {[%emt 0:02:49]} Ne8 {[%emt 0:01:25]} 28. Ba4 {[%emt 0:02:54]} Qd8 {[%emt 0:00:09]} 29. b3 {[%emt 0:09:18]} Nf6 {[%emt 0:00:24]} 30. Bc6 {[%emt 0:07:08]} Bxc6 {[%emt 0:00:50]} 31. dxc6 {[%emt 0:00:02]} Rxc6 {[%emt 0:00:02]} 32. Rd3 {[%emt 0:00:26] aiming for Nxe5.} Qb8 {[%emt 0:01:27]} 33. Nd5 {[%emt 0:01:54]} Nxd5 {[%emt 0:00:34]} 34. Rxd5 {[%emt 0:00:02]} Re8 {[%emt 0:00:36]} 35. Qd3 {[%emt 0:01:28]} Bf8 {[%emt 0:01:18]} 36. g4 {[%emt 0:02:33]} Rc5 {[%emt 0:00:31]} 37. Nd2 {[%emt 0:00:57][%cal Bf3d2,Bd2e4,Be4c3,Bc3d5][%mdl 32]} Rxd5 {[%emt 0:00:57]} 38. Qxd5 {[%emt 0:00:03]} Qa8 {[%emt 0:01:02]} 39. Qd3 {[%emt 0:00:18]} Qc6 {[%emt 0:02:19]} 40. Ne4 {[%emt 0:00:00]} Kg7 {[%emt 0:00:00] Inhibits Nf6.} 41. Nc3 {[%emt 0:00:23]} Re6 {[%emt 0:07:17]} 42. Nd5 {[%emt 0:03:10]} Be7 {[%emt 0:06:50] Black is slightly better.} 43. a4 {[%emt 0:05:47]} Bh4 {[%emt 0:00:46]} 44. Re2 {[%emt 0:02:30]} Qc5 {[%emt 0:03:48]} 45. Kg2 {[%emt 0:03:30]} Bg5 {[%emt 0:06:27]} 46. Kf1 {[%emt 0:06:53]} a5 {[%emt 0:07:27] Weighted Error Value: White=0.09 (flawless) /Black=0.07 (flawless)} 1/2-1/2